bitfinex-derivatives/quotes_SOLF0:USTF0_20251108
["timestamp","ask_amount","ask_price","bid_price","bid_amount"]
[1762560924376,0.77401499,162.02,161.98,8.78542563]
[1762560924580,0.77401499,162.02,161.98,3.05556817]
[1762560924790,0.77401499,162.02,161.98,0.04556817]
[1762560924984,0.73,161.99,161.98,0.04556817]
[1762560928183,0.73,162.01,161.98,0.04556817]
[1762560928881,6.2892,162.0,161.98,0.04556817]
[1762560929589,0.73,161.99,161.98,0.04556817]
[1762560930188,6.33261499,162.02,161.98,3.05556817]
[1762560930489,0.77401499,162.02,161.98,3.05556817]
[1762560931293,6.2889,162.01,161.98,3.05556817]
[1762560931489,0.04401499,162.02,161.98,3.05556817]
[1762560931687,0.04401499,162.02,162.0,5.76777447]
[1762560931891,0.73,162.1,162.02,3.01]
[1762560932193,0.73,162.1,162.05,8.78026821]
[1762560932884,0.73,162.15,162.06,3.18362555]
[1762560933079,0.73,162.15,162.09,0.04239425]
[1762560933988,0.73,162.11,162.09,0.04239425]
[1762560934781,0.73,162.1,162.09,0.04239425]
[1762560935792,0.73,162.12,162.09,0.04239425]
[1762560935987,0.73,162.17,162.09,3.18239425]
[1762560936196,0.73,162.17,162.11,0.04458497]
[1762560937096,0.73,162.13,162.11,0.04458497]
[1762560937293,0.73,162.13,162.1,0.04144276]
[1762560940898,6.2848,162.13,162.1,0.04144276]
[1762560941099,0.73,162.12,162.1,0.04144276]
[1762560941400,6.2748,162.13,162.1,0.04144276]
[1762560941697,0.72,162.14,162.1,3.16144276]
[1762560941898,0.72,162.14,162.1,3.16068704]
[1762560942093,6.2745,162.14,162.1,3.16068704]
[1762560943694,5.5538,162.16,162.1,3.16068704]
[1762560943896,0.72,162.15,162.11,3.15903361]
[1762560944691,6.2741,162.15,162.11,3.15903361]
[1762560944893,0.72,162.15,162.11,3.15903361]
[1762560945089,0.72,162.18,162.11,3.15903361]
[1762560945293,0.72,162.18,162.14,3.12]
[1762560947997,0.72,162.18,162.13,3.16056615]
[1762560948192,0.72,162.21,162.13,3.16056615]
[1762560948393,0.72,162.21,162.15,0.04212454]
[1762560948798,5.5525,162.2,162.15,0.04212454]
[1762560948999,0.72,162.19,162.15,0.04212454]
[1762560949397,0.72,162.19,162.15,3.16212454]
[1762560950099,6.2718,162.22,162.15,3.16212454]
[1762560950401,0.72,162.21,162.17,3.16536641]
[1762560950599,0.72,162.21,162.17,3.16336216]
[1762560950997,0.72,162.21,162.17,8.71656216]
[1762560951205,0.72,162.27,162.18,3.12]
[1762560951406,0.72,162.27,162.21,0.0452618]
[1762560952003,0.72,162.25,162.21,3.1652618]
[1762560952204,0.72,162.28,162.21,3.1652618]
[1762560952899,6.27,162.27,162.21,3.1652618]
[1762560953599,0.72,162.27,162.21,3.1652618]
[1762560954698,6.27,162.27,162.21,3.1652618]
[1762560954904,0.72,162.26,162.21,0.0452618]
[1762560955305,0.72,162.24,162.21,0.0452618]
[1762560956207,6.2714,162.23,162.21,0.0452618]
[1762560956405,0.72,162.22,162.21,0.0452618]
[1762560957805,0.72,162.23,162.21,0.0452618]
[1762560961006,0.72,162.22,162.21,0.0452618]
[1762560963009,0.72,162.24,162.21,3.1152618]
[1762560963214,0.72,162.24,162.21,0.0452618]
[1762560965808,0.72,162.28,162.21,3.1152618]
[1762560966012,0.72,162.28,162.23,3.11696911]
[1762560966209,0.72,162.27,162.24,0.04365623]
[1762560967314,0.72,162.27,162.24,3.11365623]
[1762560967509,0.72,162.3,162.24,3.11365623]
[1762560969218,0.72,162.28,162.24,3.11365623]
[1762560969419,0.72,162.32,162.24,3.11365623]
[1762560970017,0.72,162.31,162.24,8.66445623]
[1762560970319,0.72,162.31,162.25,3.07]
[1762560970516,6.2686,162.31,162.25,3.07]
[1762560970710,0.72,162.31,162.24,0.04365623]
[1762560972526,0.72,162.28,162.24,3.11365623]
[1762560972724,0.72,162.28,162.24,3.11106408]
[1762560972919,5.5486,162.31,162.24,3.11106408]
[1762560973120,0.72,162.3,162.26,0.045306]
[1762560973320,0.72,162.3,162.26,3.115306]
[1762560973923,6.2689,162.3,162.26,3.115306]
[1762560974220,0.72,162.29,162.26,3.115306]
[1762560974427,0.72,162.29,162.26,0.045306]
[1762560974824,0.72,162.28,162.26,0.045306]
[1762560975627,0.72,162.27,162.26,0.045306]
[1762560975821,0.72,162.27,162.16,5.7352105]
[1762560976026,0.72,162.27,162.17,3.07]
[1762560976325,0.72,162.25,162.17,3.07]
[1762560976934,0.72,162.22,162.19,0.0424758]
[1762560977132,0.765306,162.22,162.19,0.03974247]
[1762560977931,6.317006,162.22,162.19,0.03974247]
[1762560978137,0.72,162.21,162.19,0.03974247]
[1762560978338,0.72,162.21,162.13,5.71788979]
[1762560978547,6.2725,162.2,162.13,5.71788979]
[1762560978739,0.72,162.2,162.13,5.71788979]
[1762560979037,0.72,162.2,162.12,3.07]
[1762560979436,0.7653394,162.18,162.14,0.04045664]
[1762560979635,0.76200721,162.18,162.14,0.04119281]
[1762560979838,0.76200721,162.18,162.14,3.11119281]
[1762560980138,0.72,162.17,162.14,0.04119281]
[1762560980842,0.04200721,162.18,162.14,3.11119281]
[1762560981140,0.76200721,162.18,162.14,3.11119281]
[1762560981340,0.76200721,162.18,162.14,0.04119281]
[1762560981537,6.2736,162.17,162.14,0.04119281]
[1762560982136,0.72,162.17,162.14,3.11119281]
[1762560984139,0.76200721,162.18,162.14,3.11119281]
[1762560985141,6.31510721,162.18,162.14,0.04119281]
[1762560985445,0.72,162.17,162.14,0.04119281]
[1762560986345,0.72,162.17,162.14,3.11119281]
[1762560987038,0.72,162.16,162.14,0.04119281]
[1762560987545,0.72,162.15,162.14,0.04119281]
[1762560988847,5.5538,162.16,162.14,0.04119281]
[1762560989045,0.72,162.15,162.14,0.04119281]
[1762560989752,5.59520721,162.18,162.14,0.04119281]
[1762560989946,0.04200721,162.18,162.14,3.11119281]
[1762560990146,0.76200721,162.18,162.14,3.11119281]
[1762560991153,0.04200721,162.18,162.14,3.11119281]
[1762560994156,0.04200721,162.18,162.14,8.66539281]
[1762560994455,0.04200721,162.18,162.15,3.02]
[1762560999258,16.80743794,162.3,162.15,3.02]
[1762560999259,0.72,162.25,162.15,3.02]
[1762560999462,0.72,162.25,162.16,3.02]
[1762560999658,0.72,162.25,162.19,3.02]
[1762560999851,5.70973794,162.32,162.19,3.02]
[1762560999852,5.5501,162.27,162.19,3.02]
[1762561000354,0.04056023,162.25,162.21,3.06154049]
[1762561000760,0.76056023,162.25,162.21,3.06154049]
[1762561001063,0.04056023,162.25,162.21,3.06154049]
[1762561002761,0.04056023,162.25,162.23,3.01]
[1762561003962,0.04056023,162.25,162.23,8.5611]
[1762561004161,0.04056023,162.25,162.24,3.01]
[1762561005854,0.04056023,162.25,162.22,3.01]
[1762561006868,0.04056023,162.25,162.21,3.05154049]
[1762561007069,0.76056023,162.25,162.21,0.04154049]
[1762561007367,0.76056023,162.25,162.21,3.05154049]
[1762561007965,0.04056023,162.25,162.21,3.05154049]
[1762561008867,0.04056023,162.25,162.23,3.01]
[1762561010175,0.04056023,162.25,162.24,3.01]
[1762561010669,0.04056023,162.25,162.21,5.75943028]
[1762561010970,0.76056023,162.25,162.21,0.04154049]
[1762561011170,0.72,162.18,162.15,5.71788979]
[1762561011375,0.72,162.18,162.13,3.01]
[1762561011878,0.72,162.18,162.09,5.71788979]
[1762561012073,0.72,162.18,162.08,8.72788979]
[1762561012271,0.72,162.14,162.12,0.04648972]
[1762561012475,0.04741643,162.15,162.11,3.04957246]
[1762561012671,0.0450392,162.15,162.11,3.04957246]
[1762561013277,0.0450392,162.15,162.11,8.76746225]
[1762561013479,0.0450392,162.15,162.12,3.01]
[1762561018481,0.0450392,162.15,162.12,8.5648]
[1762561018686,0.72,162.13,161.99,7.69369095]
[1762561018873,0.72,162.13,161.98,3.01]
[1762561019075,0.72,162.06,161.95,3.01]
[1762561019675,0.03923812,162.02,161.99,0.04473022]
[1762561019873,0.03923812,162.02,161.99,3.05473022]
[1762561021083,0.75923812,162.02,161.99,0.04473022]
[1762561022385,0.72,162.0,161.99,0.04473022]
[1762561023576,0.03923812,162.02,161.99,0.04473022]
[1762561023782,0.03923812,162.02,161.99,3.02473022]
[1762561024991,1.07392492,162.11,161.99,3.02473022]
[1762561024992,0.72,162.09,161.99,3.02473022]
[1762561025180,0.72,162.09,161.99,2.98]
[1762561025392,0.72,162.09,162.0,2.98]
[1762561025980,0.04631319,162.06,162.03,0.04362401]
[1762561026288,0.04631319,162.06,162.03,3.02362401]
[1762561028387,0.04631319,162.06,162.03,8.58152401]
[1762561028586,0.04631319,162.06,162.04,2.98]
[1762561028786,0.76,162.13,162.04,2.98]
[1762561029689,0.0386029,162.1,162.07,3.02065638]
[1762561029892,0.0386029,162.1,162.07,3.01952441]
[1762561032990,0.76,162.17,162.09,2.98]
[1762561034191,0.76,162.17,162.11,0.04149893]
[1762561034587,0.76,162.17,162.11,3.02149893]
[1762561035593,0.76,162.17,162.11,0.04149893]
[1762561035997,0.76,162.15,162.11,0.04149893]
[1762561036294,0.76,162.15,162.11,0.0445754]
[1762561036492,0.76,162.14,162.11,0.0445754]
[1762561037400,0.76,162.13,162.11,0.0445754]
[1762561038088,0.76,162.12,162.11,0.0445754]
[1762561038490,0.76,162.11,162.03,5.5579]
[1762561038693,0.76,162.11,162.03,2.98]
[1762561039492,0.0445754,162.09,162.05,0.03945752]
[1762561039701,0.0445754,162.09,162.06,2.98]
[1762561044894,0.0445754,162.09,162.07,2.98]
[1762561046000,0.0445754,162.09,162.05,3.01945752]
[1762561046799,0.0445754,162.09,162.05,8.57665752]
[1762561047101,0.0445754,162.09,162.06,2.98]
[1762561047302,0.0445754,162.09,162.07,5.5566]
[1762561047504,0.0445754,162.09,162.08,2.98]
[1762561050004,5.5535,162.17,162.1,2.98]
[1762561050210,4.36542388,162.17,162.1,2.98]
[1762561050903,4.36542388,162.17,162.0,26.22369095]
[1762561050904,4.36542388,162.17,162.13,2.98]
[1762561051104,4.36542388,162.17,162.13,3.02148169]
[1762561051411,0.76,162.16,162.13,0.04148169]
[1762561052305,0.76,162.15,162.13,0.04148169]
[1762561052606,0.76,162.22,162.13,0.04148169]
[1762561052816,0.76,162.2,162.16,0.04571875]
[1762561052997,0.76,162.17,162.16,0.04571875]
[1762561053193,5.13735881,162.17,162.16,0.04571875]
[1762561053407,0.76,162.13,162.09,2.98]
[1762561054109,5.6918918,162.21,162.09,2.98]
[1762561054110,6.3139,162.16,162.09,2.98]
[1762561054301,4.37921144,162.15,162.09,2.98]
[1762561054608,5.17928069,162.14,162.11,0.03930301]
[1762561054907,4.37921144,162.13,162.11,0.04292628]
[1762561055107,4.37921144,162.12,162.11,0.04292628]
[1762561055507,0.76,162.12,162.11,0.04292628]
[1762561055811,5.15025946,162.12,162.11,0.04292628]
[1762561056411,4.39025946,162.12,162.11,0.04292628]
[1762561056937,5.15025946,162.12,162.11,0.04292628]
[1762561057601,4.39025946,162.12,162.11,2.95292628]
[1762561057808,0.0407884,162.14,162.11,2.95292628]
[1762561058004,4.39252967,162.13,162.11,2.95292628]
[1762561058204,0.0407884,162.14,162.11,2.95292628]
[1762561058402,4.39350788,162.13,162.11,2.95292628]
[1762561058608,4.39303247,162.12,162.11,2.95292628]
[1762561062614,0.0407884,162.14,162.11,2.95292628]
[1762561062813,4.39527148,162.13,162.11,2.95292628]
[1762561063018,0.0407884,162.14,162.11,2.95292628]
[1762561063213,4.39527259,162.13,162.11,2.95292628]
[1762561063414,0.0407884,162.14,162.11,2.95292628]
[1762561063724,4.39573861,162.13,162.12,3.06]
[1762561064319,0.0407884,162.14,162.12,5.5549]
[1762561064523,0.0407884,162.14,162.13,3.06]
[1762561067425,5.5521,162.21,162.16,3.06]
[1762561067724,4.39849367,162.2,162.16,3.06]
[1762561067926,4.39849367,162.19,162.16,3.06]
[1762561068223,5.19866717,162.18,162.12,3.06]
[1762561068422,4.39866717,162.17,162.14,3.06]
[1762561068726,0.8,162.18,162.14,3.06]
[1762561068929,4.40189142,162.17,162.14,3.06]
[1762561069129,0.8,162.21,162.14,3.10623409]
[1762561069426,5.6918918,162.25,162.03,39.10571475]
[1762561069427,5.20189142,162.2,162.16,3.10002447]
[1762561069623,5.6918918,162.25,162.16,3.10002447]
[1762561069624,5.20189142,162.19,162.16,3.09931568]
[1762561069815,4.40189142,162.18,162.16,3.09931568]
[1762561070016,4.40189142,162.17,162.16,0.03931568]
[1762561071021,0.8,162.22,162.16,3.09931568]
[1762561071216,5.20299612,162.21,162.17,3.10722983]
[1762561071423,4.40299612,162.2,162.17,3.10722983]
[1762561071627,0.8,162.18,162.17,0.04722983]
[1762561071821,5.20299612,162.18,162.17,0.04722983]
[1762561073033,4.40299612,162.18,162.17,0.04722983]
[1762561073924,4.40299612,162.18,162.17,3.10722983]
[1762561076930,5.5517,162.22,162.17,3.10722983]
[1762561076931,0.8,162.21,162.17,3.10722983]
[1762561077127,4.37731011,162.2,162.17,3.10722983]
[1762561077326,4.37731011,162.19,162.17,3.10722983]
[1762561077620,0.8,162.21,162.17,3.10722983]
[1762561077825,4.37445767,162.2,162.17,3.10722983]
[1762561078024,4.37445767,162.19,162.17,3.10722983]
[1762561078233,0.8,162.21,162.17,3.10722983]
[1762561078425,4.37350136,162.2,162.17,3.10722983]
[1762561078623,4.37350136,162.19,162.17,3.10722983]
[1762561078825,0.8,162.21,162.17,3.10722983]
[1762561079031,4.37209556,162.2,162.17,3.10722983]
[1762561079224,4.37209556,162.19,162.17,3.10722983]
[1762561079426,0.8,162.21,162.17,3.10722983]
[1762561079730,4.37094897,162.2,162.17,3.10722983]
[1762561079927,6.351,162.24,162.18,3.06]
[1762561080129,5.17078171,162.23,162.2,3.06]
[1762561080328,4.37078171,162.22,162.2,3.06]
[1762561080528,4.37078171,162.21,162.2,3.06]
[1762561081018,0.8,162.26,162.23,3.06]
[1762561081219,4.37114447,162.25,162.23,3.10262541]
[1762561081429,0.8,162.3,162.23,3.06]
[1762561081630,5.1675225,162.29,162.23,3.06]
[1762561081826,5.1675225,162.28,162.24,3.10394641]
[1762561082026,4.3675225,162.27,162.24,3.10228179]
[1762561082228,0.8,162.31,162.24,3.10228179]
[1762561082427,4.36397651,162.3,162.24,3.10228179]
[1762561082624,5.16397651,162.29,162.24,3.10228179]
[1762561082836,5.16397651,162.28,162.25,0.04466441]
[1762561083036,0.8,162.28,162.25,0.04466441]
[1762561083236,6.349,162.3,162.25,3.00466441]
[1762561083433,4.36030892,162.29,162.25,3.00466441]
[1762561083629,4.35974319,162.28,162.25,0.04466441]
[1762561083835,5.15994555,162.27,162.25,0.04466441]
[1762561084029,0.8,162.27,162.25,0.04466441]
[1762561084232,5.5488,162.31,162.26,2.96]
[1762561084438,4.35846887,162.3,162.27,3.00579234]
[1762561084739,5.15846887,162.29,162.27,0.04579234]
[1762561085033,0.8,162.29,162.27,0.04579234]
[1762561085229,0.8,162.29,162.13,11.1091]
[1762561085230,86.3721,162.2,162.04,2.96]
[1762561085429,1.13,162.07,161.95,7.69369095]
[1762561085633,5.48883645,162.06,161.93,7.69369095]
[1762561085939,18.66102509,162.13,161.87,26.53251475]
[1762561085940,1.13,162.04,161.87,11.49570737]
[1762561086143,0.04081652,161.98,161.95,0.04285052]
[1762561086845,5.4832798,162.08,161.96,1.24]
[1762561087033,5.4832798,162.08,161.91,30.02570737]
[1762561087034,1.13,162.08,161.91,30.02570737]
[1762561087230,4.3532798,162.09,161.92,116.54040737]
[1762561087435,1.13,162.13,161.96,2.96]
[1762561087637,4.3532798,162.12,161.96,2.96]
[1762561087839,4.3532798,162.12,161.95,11.49570737]
[1762561087840,5.4832798,162.12,162.03,8.5179]
[1762561088037,1.13,162.12,162.06,0.04091688]
[1762561088234,5.4832798,162.12,162.06,0.04091688]
[1762561088437,1.13,162.12,162.06,0.04091688]
[1762561089145,5.4832798,162.12,162.06,0.04091688]
[1762561089335,1.13,162.12,162.06,0.04091688]
[1762561089541,1.13,162.11,162.06,0.04091688]
[1762561089739,5.4832798,162.11,162.06,0.04091688]
[1762561089943,1.13,162.1,162.06,0.04091688]
[1762561091644,1.13,162.08,162.06,0.04091688]
[1762561092138,1.13,162.1,162.06,0.04091688]
[1762561092534,4.3532798,162.11,162.09,8.516]
[1762561092741,1.13,162.14,162.08,0.0446252]
[1762561092742,5.4832798,162.14,162.08,0.0446252]
[1762561093040,4.3532798,162.13,162.09,0.04437695]
[1762561093244,1.13,162.13,162.09,0.04437695]
[1762561093444,4.3532798,162.15,162.09,0.04437695]
[1762561093643,4.3532798,162.14,162.09,0.04437695]
[1762561093844,1.13,162.14,162.09,0.04437695]
[1762561094242,4.3532798,162.14,162.09,3.00437695]
[1762561094545,1.13,162.23,162.11,2.96]
[1762561094746,1.13,162.23,162.15,0.04597821]
[1762561096245,1.13,162.23,162.15,5.59967821]
[1762561096444,1.13,162.23,162.15,0.04597821]
[1762561096744,1.13,162.23,162.16,5.5534]
[1762561096945,1.13,162.23,162.15,3.00597821]
[1762561097342,1.13,162.23,162.16,5.5536]
[1762561097845,1.13,162.23,162.15,3.00597821]
[1762561098537,10.12140277,162.29,162.15,0.04597821]
[1762561098538,1.13,162.22,162.15,0.04597821]
[1762561098738,1.13,162.22,162.17,0.04503072]
[1762561099240,1.13,162.2,162.17,0.04503072]
[1762561100648,6.6826,162.2,162.17,0.04503072]
[1762561100849,1.13,162.19,162.17,0.04503072]
[1762561101042,1.13,162.19,162.16,0.04123137]
[1762561102746,1.13,162.18,162.16,0.04123137]
[1762561103751,6.6832,162.18,162.16,0.04123137]
[1762561103955,1.13,162.17,162.16,0.04123137]
[1762561104849,1.13,162.17,162.07,8.5166]
[1762561104850,1.13,162.14,162.07,8.5166]
[1762561105643,1.13,162.14,162.07,2.96]
[1762561105845,0.04498677,162.12,162.09,0.04073996]
[1762561106943,1.17498677,162.12,162.09,0.04073996]
[1762561107143,1.13,162.11,162.09,0.04073996]
[1762561107849,1.13,162.1,162.09,0.04073996]
[1762561108550,1.13,162.1,161.93,48.03840737]
[1762561108551,5.5567,162.08,162.0,2.96]
[1762561108849,5.70006817,162.17,162.0,2.96]
[1762561108850,1.13,162.07,162.0,2.96]
[1762561109555,5.5572,162.06,162.0,2.96]
[1762561109848,5.5572,162.06,162.02,0.04388732]
[1762561109849,1.17729922,162.05,162.02,0.04388732]
[1762561113250,0.04729922,162.05,162.02,0.04388732]
[1762561113754,0.04729922,162.05,162.02,2.96388732]
[1762561114050,1.18729922,162.05,162.02,0.04388732]
[1762561115955,0.04729922,162.05,162.02,2.96388732]
[1762561117240,0.04729922,162.05,162.02,0.04388732]
[1762561117241,1.18729922,162.05,162.02,0.04388732]
[1762561118078,5.5579,162.04,162.02,0.04388732]
[1762561119242,0.04729922,162.05,162.02,0.04388732]
[1762561120052,0.04729922,162.05,162.02,2.96388732]
[1762561120258,1.14,162.13,162.04,2.92]
[1762561120759,1.14,162.13,162.04,8.4775]
[1762561121156,1.18301273,162.1,162.07,0.04268398]
[1762561121465,1.18457828,162.1,162.07,0.04327116]
[1762561121659,6.74057828,162.1,162.07,0.04327116]
[1762561121957,1.14,162.09,162.07,0.04327116]
[1762561124147,0.04457828,162.1,162.07,0.04327116]
[1762561124556,1.18457828,162.1,162.07,0.04327116]
[1762561125159,0.04457828,162.1,162.07,3.00327116]
[1762561126668,0.04457828,162.1,162.07,8.55977116]
[1762561126861,0.04457828,162.1,162.08,2.96]
[1762561128552,0.04457828,162.1,162.08,8.5163]
[1762561129066,4.26889142,162.16,162.09,2.96]
[1762561129251,6.6934,162.17,162.12,2.96]
[1762561129448,4.28979586,162.16,162.12,2.96]
[1762561130264,4.28979586,162.15,162.12,2.99965216]
[1762561130555,4.29461654,162.16,162.12,2.99965216]
[1762561130750,6.6934,162.17,162.12,2.99965216]
[1762561130952,4.29459356,162.16,162.12,2.99965216]
[1762561131158,6.6934,162.17,162.12,2.99965216]
[1762561131358,4.29535398,162.16,162.12,2.99965216]
[1762561131558,6.6934,162.17,162.12,2.99965216]
[1762561131755,4.29534592,162.16,162.12,2.99965216]
[1762561131961,6.6934,162.17,162.12,2.99965216]
[1762561132162,5.5529,162.19,162.12,2.99965216]
[1762561132362,1.14,162.18,162.14,0.04116004]
[1762561133160,5.5521,162.21,162.14,3.00116004]
[1762561133363,5.5521,162.21,162.16,0.03897223]
[1762561133364,1.14,162.2,162.16,0.03897223]
[1762561133565,1.14,162.24,162.17,5.5532]
[1762561133758,1.14,162.24,162.19,0.04434665]
[1762561133959,1.14,162.22,162.19,0.04434665]
[1762561134260,80.03261743,162.31,162.19,3.0038464]
[1762561134261,1.14,162.26,162.19,3.0038464]
[1762561134565,1.14,162.26,162.21,3.00585446]
[1762561134861,1.14,162.26,162.22,0.04625827]
[1762561135663,6.6904,162.26,162.22,0.04625827]
[1762561135864,1.14,162.25,162.22,0.04625827]
[1762561136562,80.03261743,162.31,162.22,0.04625827]
[1762561136763,1.14,162.3,162.22,0.04625827]
[1762561137058,1.14,162.27,162.22,8.55775827]
[1762561138149,1.14,162.27,162.22,3.00625827]
[1762561141057,6.69,162.27,162.22,3.00625827]
[1762561141875,1.14,162.27,162.22,3.00625827]
[1762561142369,1.14,162.27,162.22,0.04625827]
[1762561142572,1.14,162.27,162.22,3.21625827]
[1762561142573,1.13,162.26,162.22,3.21625827]
[1762561143664,1.13,162.29,162.22,3.21625827]
[1762561143862,6.6793,162.29,162.24,3.17]
[1762561144568,1.13,162.29,162.24,3.17]
[1762561144757,78.96,162.31,162.24,3.17]
[1762561145065,1.13,162.3,162.26,0.04233387]
[1762561145367,1.13,162.3,162.26,0.04305405]
[1762561145763,1.13,162.3,162.26,3.21305405]
[1762561146156,1.13,162.3,162.26,0.04305405]
[1762561146859,1.13,162.27,162.26,0.04305405]
[1762561148064,1.13,162.27,162.08,150.18471622]
[1762561148065,1.13,162.25,162.18,3.17]
[1762561148264,1.13,162.29,162.18,3.17]
[1762561148459,5.5505,162.26,162.18,3.17]
[1762561148856,0.04305405,162.24,162.2,3.21740883]
[1762561149062,0.04305405,162.24,162.2,3.20930564]
[1762561149262,1.17305405,162.24,162.2,3.20930564]
[1762561150271,0.04305405,162.24,162.2,3.20930564]
[1762561150773,0.04305405,162.24,162.2,8.76150564]
[1762561150961,0.04305405,162.24,162.21,3.17]
[1762561151869,0.04305405,162.24,162.23,3.17]
[1762561152670,16.77523006,162.41,162.26,3.17]
[1762561152872,1.13,162.33,162.2,3.17]
[1762561153076,1.13,162.33,162.24,5.5508]
[1762561153077,5.5486,162.31,162.24,5.5508]
[1762561153278,1.13,162.31,162.24,5.5508]
[1762561153575,1.13,162.31,162.26,0.04277887]
[1762561153772,1.13,162.29,162.26,0.04277887]
[1762561153968,1.13,162.29,162.26,0.04506392]
[1762561154675,6.6793,162.29,162.26,0.04506392]
[1762561154974,1.13,162.28,162.26,0.04506392]
[1762561155272,1.13,162.28,162.25,0.04730674]
[1762561155976,6.6797,162.28,162.25,0.04730674]
[1762561156169,5.5497,162.28,162.25,3.21730674]
[1762561156570,6.6797,162.28,162.25,0.04730674]
[1762561157404,6.68,162.27,162.25,0.04730674]
[1762561157679,6.68,162.27,162.24,0.04474984]
[1762561157880,1.13,162.33,162.24,3.21474984]
[1762561158074,1.13,162.33,162.27,0.0467915]
[1762561158582,5.5494,162.29,162.27,0.0467915]
[1762561158777,1.13,162.33,162.27,3.2167915]
[1762561158970,1.07225389,162.38,162.27,3.2167915]
[1762561159172,1.13,162.37,162.31,0.04200025]
[1762561159479,1.13,162.4,162.32,3.20911261]
[1762561159679,1.13,162.4,162.34,0.04403583]
[1762561159880,1.13,162.44,162.34,3.21403583]
[1762561160075,1.13,162.44,162.26,18.53]
[1762561160076,1.13,162.48,162.4,3.17]
[1762561160276,1.13,162.48,162.42,0.04723232]
[1762561161276,1.13,162.51,162.42,3.21723232]
[1762561161485,1.13,162.51,162.45,0.04603118]
[1762561161783,1.13,162.48,162.45,0.04603118]
[1762561161984,1.13,162.48,162.45,0.04412817]
[1762561162179,1.07106583,162.57,162.45,0.04412817]
[1762561162180,1.13,162.53,162.45,0.04412817]
[1762561162484,6.75589589,162.57,162.42,3.17]
[1762561162485,1.13,162.52,162.47,0.04373962]
[1762561162684,1.13,162.52,162.48,0.04394621]
[1762561163886,1.13,162.49,162.48,0.04394621]
[1762561167473,5.5434,162.46,162.39,3.17]
[1762561167880,5.5434,162.46,162.35,5.5469]
[1762561167881,1.13,162.46,162.35,3.17]
[1762561168088,5.5442,162.44,162.35,3.17]
[1762561168279,6.6742,162.44,162.35,3.17]
[1762561168473,6.6742,162.44,162.38,0.04667293]
[1762561168679,0.04296766,162.41,162.38,3.21667293]
[1762561168884,0.04296766,162.41,162.38,3.21406477]
[1762561173594,0.04296766,162.41,162.39,3.08]
[1762561173890,1.12,162.54,162.39,3.08]
[1762561174091,1.12,162.52,162.39,3.08]
[1762561174388,5.5425,162.49,162.42,3.08]
[1762561174790,6.6625,162.49,162.44,3.12387668]
[1762561174990,6.6625,162.49,162.45,0.04340451]
[1762561175393,1.12,162.49,162.45,0.04340451]
[1762561175587,1.12,162.49,162.45,3.12340451]
[1762561176695,1.12,162.53,162.45,3.12340451]
[1762561176998,1.12,162.53,162.47,0.03995143]
[1762561177296,5.3810746,162.53,162.47,0.03995143]
[1762561177493,6.6614,162.52,162.47,3.11995143]
[1762561177695,1.12,162.52,162.47,3.11995143]
[1762561177895,1.12,162.52,162.47,0.03995143]
[1762561178092,1.12,162.5,162.47,0.03995143]
[1762561178896,5.5427,162.49,162.47,0.03995143]
[1762561179396,6.6627,162.49,162.47,0.03995143]
[1762561182798,6.6719,162.51,162.47,0.03995143]
[1762561183003,6.6719,162.51,162.47,3.18995143]
[1762561184102,196.23093171,162.56,162.47,3.18995143]
[1762561184103,5.5422,162.5,162.47,0.03995143]
[1762561184296,1.13,162.52,162.47,3.18995143]
[1762561184698,6.6715,162.52,162.47,3.18995143]
[1762561184995,1.13,162.51,162.47,0.03995143]
[1762561185190,5.5442,162.44,162.4,3.15]
[1762561185703,1.13,162.44,162.37,3.15]
[1762561185894,6.6749,162.42,162.37,3.15]
[1762561186404,0.03995143,162.41,162.38,3.19732083]
[1762561186706,0.03995143,162.41,162.38,3.19696699]
[1762561188197,5.3910746,162.5,162.39,3.15]
[1762561188501,1.13,162.5,162.39,3.15]